[Event "2nd Serbia Open Masters 2022"]
[Site "Novi Sad"]
[Date "2022.06.29"]
[Round "2.52"]
[White "Saravanan, V.."]
[Black "Suleymanli, Aydin"]
[Result "1/2-1/2"]
[ECO "D26"]
[WhiteElo "2324"]
[BlackElo "2537"]
[Annotator "TA"]
[PlyCount "76"]
[EventDate "2022.06.28"]
[EventType "swiss"]
[EventCountry "SRB"]
[SourceTitle "playchess.com"]
[Source "ChessBase"]
[SourceQuality "1"]
[TimeControl "40/5400+30:900+30"]

{[%evp 14,76,-8,0,0,0,0,0,0,0,0,0,0,-5,10,-23,15,0,0,0,0,0,0,0,0,-12,0,-2,0,-3,0,0,0,0,0,0,0,0,33,39,33,33,42,40,45,40,33,33,32,32,45,-47,-47,-47,-47,-47,-47,-47,-47,-47,-47,-47,-47,-47,-37]} 1. Nf3 {[%emt 0:00:04]} d5 {[%emt 0:03:46]} 2. d4 {[%emt 0:00:08]} Nf6 {[%emt 0:00:05]} 3. c4 {[%emt 0:00:06]} e6 {[%emt 0:00:08]} 4. Nc3 {[%emt 0:00:05]} dxc4 {[%emt 0:00:06]} 5. e3 {[%emt 0:00:08]} a6 {[%emt 0:00:03]} 6. Bxc4 {[%emt 0:00:50]} b5 {[%emt 0:00:03]} 7. Be2 {[%emt 0:03:27]} Bb7 {[%emt 0:00:07]} 8. O-O {[%emt 0:00:08]} Nbd7 {[%emt 0:00:37] D26: Queen's Gambit Accepted: 4 e3 e6 5 Bxc5 c5 sidelines.} 9. b3 {[%emt 0:03:06]} c5 {[%emt 0:02:03]} 10. Bb2 {[%emt 0:00:11]} Rc8 {[%emt 0:01:18] The position is equal.} 11. Rc1 {[%emt 0:00:14]} Be7 {[%emt 0:01:19]} 12. dxc5 {[%emt 0:09:22]} Bxc5 {[%emt 0:00:29]} 13. Nd4 {[%emt 0:06:58] [#]} Qb6 $146 {[%emt 0:03:39]} ({Predecessor:} 13... Ne5 14. Nf3 Qxd1 15. Rfxd1 Nxf3+ 16. Bxf3 Bxf3 17. gxf3 Ke7 18. Ne4 Nxe4 19. fxe4 {½-½ (32) Peska,J (1959)-Halas,M (1939) Slovakia 2009}) 14. Bf3 {[%emt 0:06:06]} Bxf3 {[%emt 0:10:30]} 15. Qxf3 {[%emt 0:04:22]} Ne5 {[%emt 0:06:04]} 16. Qg3 {[%emt 0:06:52][%csl LRe5,LRg7]} Ng6 {[%emt 0:02:26]} 17. Rfd1 {[%emt 0:15:06]} O-O {[%emt 0:01:04]} 18. Qf3 {[%emt 0:05:35]} Be7 {[%emt 0:01:56]} 19. a4 {[%emt 0:09:10]} b4 {[%emt 0:02:32]} 20. Nb1 {[%emt 0:01:25]} Nd5 {[%emt 0:03:30]} 21. Nf5 {[%emt 0:06:11]} Bf6 {[%emt 0:05:16]} 22. Nh6+ {[%emt 0:03:37]} gxh6 {[%emt 0:00:48]} 23. Bxf6 {[%emt 0:00:10]} Rxc1 {[%emt 0:00:13]} 24. Rxc1 {[%emt 0:00:04]} Nxf6 {[%emt 0:00:04]} 25. Qxf6 {[%emt 0:00:09]} Qd8 {[%emt 0:00:13] Against Nd2} 26. Qd4 {[%emt 0:04:45]} Qxd4 {[%emt 0:02:10]} 27. exd4 $14 {[%emt 0:00:05][%mdl 4096] Endgame KRN-KRN} Rd8 {[%emt 0:04:45]} 28. Rc4 {[%emt 0:00:05]} Ne5 {[%emt 0:04:44]} 29. Rxb4 {[%emt 0:00:21]} a5 {[%emt 0:01:54]} 30. Rb5 {[%emt 0:00:28]} Nc6 {[%emt 0:01:08]} 31. g3 {[%emt 0:06:52]} Nxd4 {[%emt 0:00:15]} 32. Rxa5 {[%emt 0:00:07]} (32. Rb7 $14) 32... Nxb3 $15 {[%emt 0:01:07] Black is slightly better.} 33. Rb5 {[%emt 0:00:05]} Rd1+ {[%emt 0:00:08]} 34. Kg2 {[%emt 0:00:06]} Rxb1 {[%emt 0:00:03]} 35. a5 {[%emt 0:00:16]} Kg7 {[%emt 0:00:24]} 36. a6 {[%emt 0:00:09] [#]} Ra1 $1 {[%emt 0:00:24] Against Ra5} 37. Rxb3 {[%emt 0:00:06]} Rxa6 {[%emt 0:00:02]} 38. Rb7 {[%emt 0:01:20]} h5 {[%emt 0:00:04] Weighted Error Value: White=0.09 (flawless) /Black=0.04 (flawless)} 1/2-1/2

[Event "2nd Serbia Open Masters 2022"]
[Site "Novi Sad"]
[Date "2022.06.30"]
[Round "3.1"]
[White "Babazada, Khazar"]
[Black "Sarana, Alexey"]
[Result "1-0"]
[ECO "B92"]
[WhiteElo "2431"]
[BlackElo "2675"]
[Annotator "TA"]
[PlyCount "115"]
[EventDate "2022.06.28"]
[EventType "swiss"]
[EventCountry "SRB"]
[SourceTitle "playchess.com"]
[Source "ChessBase"]
[SourceQuality "1"]
[TimeControl "40/5400+30:900+30"]

{[%evp 15,114,0,0,0,0,0,0,0,0,0,5,0,16,0,47,52,73,85,89,79,83,84,81,66,84,53,83,46,79,65,93,0,51,29,26,30,18,19,25,7,12,-30,-32,-40,-27,-80,-70,-72,-79,-79,-78,-75,-75,-85,-85,-89,0,0,344,330,592,572,754,739,600,587,513,526,1168,1185,1180,1175,1277,1270,1259,1254,1239,1127,1159,724,658,443,441,431,424,397,29979,29980,29980,29979,29987,5397,5385,5381,29983,29984,29984,5222,29985,29984,29999]} 1. e4 {[%emt 0:00:05]} c5 {[%emt 0:00:06]} 2. Nf3 {[%emt 0:00:22]} d6 {[%emt 0:00:04]} 3. d4 {[%emt 0:00:07]} cxd4 {[%emt 0:00:05]} 4. Nxd4 {[%emt 0:00:04]} Nf6 {[%emt 0:00:04]} 5. Nc3 {[%emt 0:00:06]} a6 {[%emt 0:00:03]} 6. Be2 {[%emt 0:00:36]} e5 {[%emt 0:00:14]} 7. Nb3 {[%emt 0:00:09]} Be7 {[%emt 0:00:11]} 8. g4 {[%emt 0:00:19]} h6 $1 {[%emt 0:01:52]} 9. h4 {[%emt 0:00:18] B92: Sicilian Najdorf: 6 Be2.} Be6 {[%emt 0:01:14]} 10. Be3 {[%emt 0:00:07]} Nbd7 {[%emt 0:01:00]} 11. Rg1 {[%emt 0:00:42] The position is equal.} Nh7 {[%emt 0:04:26] [#] Prevents g5.} 12. Rh1 $146 {[%emt 0:00:46][%cal Og4g5]} ({Predecessor:} 12. h5 Rc8 13. Qd2 O-O 14. O-O-O b5 15. Kb1 Nb6 16. f4 exf4 17. Bxf4 Ng5 18. Bxg5 {½-½ (18) Ponomariov,R (2663)-Kovchan,A (2575) Kiev 2018}) 12... Nhf6 {[%emt 0:00:18]} 13. Rg1 {[%emt 0:00:18]} Nh7 {[%emt 0:00:45] Against g5} 14. Rh1 {[%emt 0:00:11][%cal Og4g5]} Rc8 {[%emt 0:07:59]} (14... Nhf6 $11 {is more appropriate.}) 15. g5 $1 $14 {[%emt 0:11:46]} Nb6 {[%emt 0:08:14][%cal Rh6g5]} 16. Qd2 {[%emt 0:31:39]} ({Much weaker is} 16. gxh6 gxh6 17. Qd2 (17. Bxh6 Ng5 $11) 17... Nf6 $11) 16... Nf8 {[%emt 0:14:09]} 17. O-O-O {[%emt 0:01:53][%cal Rg5h6]} hxg5 {[%emt 0:03:56]} 18. hxg5 {[%emt 0:00:12]} Rxh1 {[%emt 0:00:05]} 19. Rxh1 {[%emt 0:00:08]} Ng6 {[%emt 0:01:13] Inhibits Rh8+.} 20. Kb1 {[%emt 0:01:54]} Qc7 {[%emt 0:02:36]} 21. Na5 {[%emt 0:24:29]} Bd8 {[%emt 0:04:42][%cal Ob6a4]} 22. Rd1 {[%emt 0:01:16] White is more active.} Be7 {[%emt 0:03:57][%cal Og6f4]} 23. f3 {[%emt 0:01:39]} (23. a3 $16) 23... Nd7 {[%emt 0:05:13]} (23... Nf4 $1 $11) 24. Nd5 {[%emt 0:00:57]} Bxd5 {[%emt 0:01:22]} 25. exd5 {[%emt 0:00:04]} Nf4 $1 {[%emt 0:00:41]} 26. Bxf4 {[%emt 0:02:27]} exf4 {[%emt 0:00:29]} 27. g6 {[%emt 0:00:17]} (27. Rg1 $5 {[%cal Ra5b3]}) 27... fxg6 {[%emt 0:00:09]} 28. Bf1 {[%emt 0:00:06]} Ne5 {[%emt 0:03:49]} 29. Bh3 {[%emt 0:00:19]} Nxf3 {[%emt 0:04:10]} 30. Qf2 {[%emt 0:00:21]} (30. Qe2 $11) 30... Qc5 $1 $17 {[%emt 0:00:59]} 31. Qg2 {[%emt 0:06:08]} (31. Qxf3 $2 {leads to mate.} Qxc2+ 32. Ka1 Qc1+ $3 {[%mdl 512]} 33. Rxc1 Rxc1#) 31... Nh4 {[%emt 0:02:32]} 32. Qe4 {[%emt 0:05:49]} Rc7 {[%emt 0:00:26]} 33. Nb3 {[%emt 0:01:21]} Qe3 {[%emt 0:00:42]} 34. Qa4+ {[%emt 0:00:09]} b5 {[%emt 0:07:54]} 35. Qa5 {[%emt 0:00:21] [#]} Ra7 {[%emt 0:02:29]} ({Black should try} 35... Rxc2 $1 $17 36. Kxc2 Qxh3 37. Qxa6 Qf5+ 38. Kc3 Bf6+ 39. Kb4 Qe4+ 40. Ka3 g5 41. Qxb5+ Kf7) 36. Be6 $1 $11 {[%emt 0:00:53]} f3 $2 {[%emt 0:00:04][%mdl 8192] [#] Black is on the road to losing.} (36... Bf6 $11) 37. Re1 $1 $18 {[%emt 0:01:25]} Qf2 {[%emt 0:06:44]} (37... Bd8) 38. Qc3 {[%emt 0:00:42] White wants to mate with Qc6+.} Bf6 {[%emt 0:00:02]} 39. Qc8+ {[%emt 0:02:23]} Ke7 {[%emt 0:00:05]} 40. Rc1 {[%emt 0:00:00]} Be5 {[%emt 0:00:00]} 41. Na5 {[%emt 0:01:58] Intending Nc6+ and mate.} Qb6 {[%emt 0:09:30]} 42. Nc6+ {[%emt 0:01:50]} Kf6 {[%emt 0:01:34]} 43. Bh3 {[%emt 0:00:23] Threatening mate with Qe6+.} Re7 {[%emt 0:03:23] Prevents Qe6+.} 44. Nxe7 {[%emt 0:00:17]} Qd4 {[%emt 0:00:57]} 45. c3 {[%emt 0:01:54]} Qe4+ {[%emt 0:04:23]} 46. Ka1 {[%emt 0:00:08]} Bg3 {[%emt 0:00:08]} 47. Qf8+ {[%emt 0:05:28]} Kg5 {[%emt 0:00:01]} 48. Qxg7 {[%emt 0:00:18]} Qe3 {[%emt 0:02:50][%cal Re3c1]} 49. Rb1 {[%emt 0:03:34] Threatens to win with Ng8.} Be5 {[%emt 0:00:36]} 50. Qf8 {[%emt 0:00:07] And now Ng8 would win.} b4 $2 {[%emt 0:12:05]} (50... f2 $18 51. Ng8 Qxh3 52. Qxf2 Kh5 53. Nf6+ Kh6) 51. Ng8 {[%emt 0:00:55][%csl Gg8][%cal Rf8h6]} Nf5 {[%emt 0:00:00]} 52. Bxf5 {[%emt 0:00:14]} Kh4 {[%emt 0:00:00]} 53. Qe7+ {[%emt 0:02:19]} (53. Qf7 $142 Bh2 54. Rh1 Qg5 55. Qh7+ Qh5 56. Rxh2+ Kg3 57. Rxh5 gxh5 58. Be4) 53... Kg3 {[%emt 0:00:00] [#]} 54. Rh1 $1 {[%emt 0:00:54] White threatens Qh4+ and mate.} bxc3 {[%emt 0:00:00]} (54... gxf5 55. Qh4+) 55. Qh4+ {[%emt 0:00:44]} Kg2 {[%emt 0:00:00]} 56. Qh3+ {[%emt 0:02:00]} Kf2 {[%emt 0:00:00]} 57. Nh6 {[%emt 0:00:46]} Qe2 {[%emt 0:03:30]} 58. Ng4# {[%emt 0:00:05] Weighted Error Value: White=0.11 (very precise) /Black=0.37} 1-0

[Event "2nd Serbia Open Masters 2022"]
[Site "Novi Sad"]
[Date "2022.06.30"]
[Round "3.2"]
[White "Jumabayev, Rinat"]
[Black "Nogerbek, Kazybek"]
[Result "1-0"]
[ECO "A28"]
[WhiteElo "2628"]
[BlackElo "2424"]
[Annotator "TA"]
[PlyCount "117"]
[EventDate "2022.06.28"]
[EventType "swiss"]
[EventCountry "SRB"]
[SourceTitle "playchess.com"]
[Source "ChessBase"]
[SourceQuality "1"]
[TimeControl "40/5400+30:900+30"]

{[%evp 12,117,6,4,5,4,4,3,6,6,25,6,20,0,6,5,18,0,25,22,19,27,29,0,10,1,16,24,24,19,17,22,17,19,32,28,28,30,38,35,41,38,35,38,40,40,40,40,61,54,60,22,50,52,52,47,170,177,185,189,181,160,170,142,207,200,207,207,207,207,214,214,212,211,329,286,269,190,622,704,704,704,565,605,576,673,596,531,804,812,808,793,804,785,756,744,712,656,649,579,422,381,29981,29980,29978,29979,29976,29977]} 1. c4 {[%emt 0:00:05]} Nf6 {[%emt 0:00:45]} 2. Nc3 {[%emt 0:03:16]} e5 {[%emt 0:01:27]} 3. Nf3 {[%emt 0:02:42]} Nc6 {[%emt 0:00:28]} 4. e3 {[%emt 0:00:06]} Bb4 {[%emt 0:03:25]} 5. Qc2 {[%emt 0:00:37]} Bxc3 {[%emt 0:00:17]} 6. Qxc3 {[%emt 0:02:23]} Qe7 {[%emt 0:00:18]} 7. Be2 {[%emt 0:00:02] 7.d4 gains popularity.} d5 {[%emt 0:00:25] A28: English Opening: Four Knights Variation.} 8. d4 {[%emt 0:01:22]} exd4 {[%emt 0:01:41]} 9. Nxd4 {[%emt 0:04:25]} Nxd4 {[%emt 0:00:14] The position is equal.} 10. Qxd4 {[%emt 0:00:05]} c5 {[%emt 0:00:14]} 11. Qh4 {[%emt 0:07:23]} dxc4 {[%emt 0:00:58]} 12. Qxc4 {[%emt 0:02:43]} (12. Bxc4 {keeps more tension.} O-O 13. O-O Qe5 14. Qg3) 12... O-O {[%emt 0:03:05]} 13. O-O {[%emt 0:00:30]} b6 {[%emt 0:02:16] [#]} 14. f3 $146 {[%emt 0:34:16]} ({Predecessor:} 14. Rd1 a5 15. Qb3 Qc7 16. f3 Be6 17. Qc2 Nd5 18. a3 Rfd8 19. Bf1 Qe5 20. e4 {½-½ (50) Howell,D (2702)-Tari,A (2591) Tbilisi 2017}) 14... Bb7 {[%emt 0:02:14]} 15. e4 {[%emt 0:00:07]} Rfd8 {[%emt 0:01:01]} 16. Qc2 {[%emt 0:01:31]} Nd7 {[%emt 0:00:57]} 17. Kh1 {[%emt 0:03:25]} Ne5 {[%emt 0:02:35]} 18. Be3 {[%emt 0:01:35]} h6 {[%emt 0:02:04]} 19. Rad1 {[%emt 0:02:25]} Rxd1 {[%emt 0:00:49]} 20. Rxd1 {[%emt 0:00:06]} Rd8 {[%emt 0:00:11]} 21. Rxd8+ {[%emt 0:14:17]} Qxd8 {[%emt 0:00:41]} 22. Qd2 {[%emt 0:00:13]} Qxd2 {[%emt 0:00:09]} 23. Bxd2 $11 {[%emt 0:00:01][%mdl 4096] Endgame KBB-KBN} Bc8 {[%emt 0:01:31]} 24. Bc3 {[%emt 0:06:16]} Nc6 {[%emt 0:00:50]} 25. Kg1 {[%emt 0:00:44]} Be6 {[%emt 0:00:12]} 26. a3 {[%emt 0:02:05]} f6 {[%emt 0:03:31]} 27. Kf2 {[%emt 0:00:22]} Kf7 {[%emt 0:00:12]} 28. f4 {[%emt 0:00:17]} Ke7 {[%emt 0:03:30]} 29. Ke3 {[%emt 0:00:33]} Kd6 {[%emt 0:00:24]} 30. g4 {[%emt 0:02:43]} Ke7 {[%emt 0:06:46]} 31. h4 {[%emt 0:01:40]} Kf7 {[%emt 0:02:57]} 32. f5 {[%emt 0:02:17]} Bb3 {[%emt 0:00:29]} 33. Kf4 {[%emt 0:00:05]} g5+ {[%emt 0:04:26] This move loses the game for Black.} (33... Bc2 $14) 34. fxg6+ $1 $18 {[%emt 0:00:20]} Kxg6 {[%emt 0:00:06]} 35. e5 {[%emt 0:04:19]} fxe5+ {[%emt 0:03:17]} 36. Bxe5 {[%emt 0:00:26]} Kf7 {[%emt 0:02:58]} ({Less strong is} 36... Nxe5 37. Kxe5 c4 38. Bf3) 37. Bf3 {[%emt 0:01:28]} Ne7 {[%emt 0:01:19]} (37... Nxe5 $16 38. Kxe5 Ke7) 38. Bb8 {[%emt 0:00:57]} a5 {[%emt 0:00:40] [#]} 39. g5 $1 {[%emt 0:00:39]} Ng6+ {[%emt 0:07:19]} 40. Kg4 {[%emt 0:00:00]} hxg5 {[%emt 0:00:00]} 41. Kxg5 {[%emt 0:17:14]} ({But not} 41. hxg5 $6 a4 42. Bc7 b5 $16) 41... Nf8 {[%emt 0:00:31]} 42. Be4 {[%emt 0:00:00]} b5 {[%emt 0:02:04]} (42... Ne6+ $142 43. Kf5 Kg7) 43. h5 {[%emt 0:00:00][%cal Bh4h5,Bh5h6][%mdl 32]} b4 {[%emt 0:00:21]} 44. Bd6 {[%emt 0:00:00] [#] Black must now prevent h6.} bxa3 $2 {[%emt 0:00:21]} (44... Ne6+ 45. Kh4 Kg7 46. Be5+ Kh6) 45. bxa3 {[%emt 0:00:00]} Ne6+ {[%emt 0:02:15]} 46. Kh4 {[%emt 0:00:00]} Kg7 {[%emt 0:01:11]} 47. Be5+ {[%emt 0:00:00] This bishop pair is nice.} Kg8 {[%emt 0:01:34]} 48. h6 {[%emt 0:00:00] White wants to mate with h7+.} Nf8 {[%emt 0:00:05] Inhibits h7+.} 49. Bd6 {[%emt 0:00:32]} a4 {[%emt 0:02:57]} 50. Bxc5 {[%emt 0:00:10]} Nh7 {[%emt 0:01:17]} 51. Bd4 {[%emt 0:00:12]} Nf8 {[%emt 0:01:22]} 52. Bc3 {[%emt 0:00:20]} Nh7 {[%emt 0:00:23]} 53. Kg4 {[%emt 0:00:16]} Nf8 {[%emt 0:00:06]} 54. Kf4 {[%emt 0:00:39]} Nh7 {[%emt 0:00:14]} 55. Kf5 {[%emt 0:02:30]} Kf8 {[%emt 0:04:32]} 56. Ke5 {[%emt 0:01:20]} Ng5 {[%emt 0:00:28]} (56... Kg8 $18 57. Kf5 Kf7) 57. Kf4 {[%emt 0:01:12] White mates.} Nh3+ {[%emt 0:05:31]} 58. Kg4 {[%emt 0:00:15]} Nf2+ {[%emt 0:00:10]} 59. Kh4 {[%emt 0:00:07] Weighted Error Value: White=0.06 (flawless) /Black=0.39} 1-0

[Event "2nd Serbia Open Masters 2022"]
[Site "Novi Sad"]
[Date "2022.06.30"]
[Round "3.4"]
[White "Bernadskiy, Vitaliy"]
[Black "Injac, Teodora"]
[Result "1/2-1/2"]
[ECO "A00"]
[WhiteElo "2636"]
[BlackElo "2384"]
[Annotator "TA"]
[PlyCount "73"]
[EventDate "2022.06.28"]
[EventType "swiss"]
[EventCountry "SRB"]
[SourceTitle "playchess.com"]
[Source "ChessBase"]
[SourceQuality "1"]
[TimeControl "40/5400+30:900+30"]

{[%evp 9,73,11,25,31,26,31,27,33,54,35,77,69,69,72,66,46,47,48,40,40,62,65,60,60,69,65,65,60,81,41,41,22,30,9,20,33,40,0,0,0,0,0,0,0,0,0,0,0,0,0,0,0,0,0,19,0,11,0,0,0,0,0,0,0,0,0]} 1. Nc3 {[%emt 0:00:24]} e5 {[%emt 0:08:35]} 2. Nf3 {[%emt 0:00:36]} Nc6 {[%emt 0:00:38]} 3. d4 {[%emt 0:00:13]} exd4 {[%emt 0:02:41]} 4. Nxd4 {[%emt 0:00:12]} Nf6 {[%emt 0:05:32]} 5. Bg5 {[%emt 0:00:07]} Bb4 {[%emt 0:20:22]} 6. Nxc6 {[%emt 0:03:23] A00: Irregular Openings.} Bxc3+ {[%emt 0:05:14] was the old line (6...bxc6).} 7. bxc3 {[%emt 0:00:05]} bxc6 {[%emt 0:00:03]} 8. Qd4 {[%emt 0:03:13] White has an edge.} Qe7 {[%emt 0:01:55] [#]} 9. Rb1 $146 {[%emt 0:02:09]} ({Predecessor:} 9. e3 c5 10. Qf4 h6 11. Bxf6 Qxf6 12. Qxf6 gxf6 13. Rb1 d6 14. g3 c6 15. Kd2 {1-0 (38) Bogdanovich,S (2596)-Kjartansson,G (2437) Minsk 2017}) 9... O-O {[%emt 0:05:38]} 10. Bxf6 {[%emt 0:02:47] White is more active.} Qxf6 {[%emt 0:00:36]} 11. Qxf6 {[%emt 0:00:45]} gxf6 {[%emt 0:00:04]} 12. g3 {[%emt 0:00:17]} Ba6 {[%emt 0:03:58]} 13. e3 {[%emt 0:04:26]} Rfb8 {[%emt 0:02:51]} 14. Rb3 {[%emt 0:01:04]} Bb5 {[%emt 0:02:14]} 15. Kd2 {[%emt 0:01:03]} Bxf1 {[%emt 0:15:55]} 16. Rxf1 $14 {[%emt 0:00:30][%mdl 4096] Endgame KRR-KRR} Rb6 {[%emt 0:01:27]} 17. Rd1 {[%emt 0:04:44]} d6 {[%emt 0:04:03]} 18. Kc1 {[%emt 0:00:06]} c5 {[%emt 0:00:43]} 19. Rd5 {[%emt 0:00:03]} Ra6 $1 {[%emt 0:03:32] Prevents Ra3.} 20. Kb2 {[%emt 0:01:15]} Re8 {[%emt 0:00:56]} 21. Rf5 {[%emt 0:00:40]} Kg7 {[%emt 0:01:54]} 22. Rf4 {[%emt 0:00:04]} h5 {[%emt 0:02:01] Against Rg4+} 23. Rb7 {[%emt 0:07:22]} Rb6+ {[%emt 0:01:00] The position is equal.} 24. Rxb6 {[%emt 0:00:04]} axb6 $11 {[%emt 0:01:46] KR-KR} 25. Ra4 {[%emt 0:00:04]} f5 {[%emt 0:01:20]} 26. Kb3 {[%emt 0:06:01]} Kf6 {[%emt 0:00:22]} 27. Ra7 {[%emt 0:00:08]} Rc8 {[%emt 0:00:13]} 28. Kc4 {[%emt 0:00:08]} Ke6 {[%emt 0:00:45]} 29. Kd3 {[%emt 0:00:16]} h4 {[%emt 0:04:37]} 30. gxh4 {[%emt 0:01:05]} Rh8 {[%emt 0:00:01]} 31. Rxc7 {[%emt 0:09:48]} Rxh4 {[%emt 0:00:06]} 32. Rb7 {[%emt 0:00:05]} Rxh2 {[%emt 0:00:17]} 33. Ke2 {[%emt 0:05:55]} Rh4 {[%emt 0:01:09]} 34. Rxb6 {[%emt 0:00:03]} Ra4 {[%emt 0:00:07]} 35. Rb2 {[%emt 0:00:04]} Kd5 {[%emt 0:01:49]} 36. Kd2 {[%emt 0:00:34]} f4 {[%emt 0:01:09]} 37. Kd3 {[%emt 0:06:45] Weighted Error Value: White=0.07 (flawless) /Black=0.05 (flawless)} 1/2-1/2

[Event "2nd Serbia Open Masters 2022"]
[Site "Novi Sad"]
[Date "2022.06.30"]
[Round "3.5"]
[White "Erdogmus, Yagiz Kaan"]
[Black "Adhiban, B.."]
[Result "0-1"]
[ECO "C07"]
[WhiteElo "2383"]
[BlackElo "2616"]
[Annotator "TA"]
[PlyCount "91"]
[EventDate "2022.06.28"]
[EventType "swiss"]
[EventCountry "SRB"]
[SourceTitle "playchess.com"]
[Source "ChessBase"]
[SourceQuality "1"]
[TimeControl "40/5400+30:900+30"]

{[%evp 15,91,13,31,3,17,11,12,3,12,14,15,10,16,13,17,-20,0,-16,-15,-47,-34,-193,-183,-182,-187,-183,-207,-191,-205,-247,-211,-248,-249,-274,-272,-267,-272,-373,-337,-668,-661,-737,-710,-860,-862,-846,-855,-904,-875,-1099,-1081,-1106,-1075,-999,-1029,-952,-862,-1275,-1292,-1325,-1314,-1199,-1188,-29984,-29985,-29988,-5981,-29992,-29992,-29992,-29993,-29994,-29995,-29995,-29996,-29997,-29998,-29998]} 1. e4 {[%emt 0:00:11]} e6 {[%emt 0:00:09]} 2. d4 {[%emt 0:00:34]} d5 {[%emt 0:00:07]} 3. Nd2 {[%emt 0:00:16]} c5 {[%emt 0:00:28]} 4. Ngf3 {[%emt 0:00:29]} cxd4 {[%emt 0:00:21]} 5. Nxd4 {[%emt 0:00:28]} Nc6 {[%emt 0:00:15]} 6. Bb5 {[%emt 0:00:35]} Bd7 {[%emt 0:00:06]} 7. Nxc6 {[%emt 0:00:49]} bxc6 {[%emt 0:00:19]} 8. Bd3 {[%emt 0:00:06]} Qc7 {[%emt 0:01:06]} 9. Qe2 {[%emt 0:03:09] C07: French Tarrasch: 3...c5, 4 Ngf3 and 4 exd5 Qxd5.} Ne7 {[%emt 0:01:11]} 10. Nf3 {[%emt 0:02:08]} Ng6 {[%emt 0:00:41]} 11. O-O {[%emt 0:03:04] The position is equal.} Be7 {[%emt 0:03:30] Nowadays more popular than 11...Bd6.} 12. c4 {[%emt 0:14:10]} dxe4 {[%emt 0:00:57]} 13. Bxe4 {[%emt 0:00:33]} f5 {[%emt 0:01:50]} 14. Bc2 {[%emt 0:01:13]} O-O {[%emt 0:00:18]} 15. Ng5 {[%emt 0:11:15] [#]} Rf6 $146 {[%emt 0:17:29]} ({Predecessor:} 15... Bxg5 16. Bxg5 e5 17. Rad1 Rae8 18. h4 Rf7 19. h5 Nf8 20. Bd2 Ne6 21. Bc3 Nf4 {½-½ (30) Svanda,O (2361)-Budisavljevic,L (2516) Teplice 2022}) 16. Rd1 {[%emt 0:16:50]} c5 {[%emt 0:14:35]} 17. h4 {[%emt 0:12:20]} e5 {[%emt 0:15:55][%cal Be6e5,Be5e4][%mdl 32]} 18. f4 $2 {[%emt 0:15:13] [#] This move loses the game for White.} ({Better is} 18. Nh3 $15) 18... e4 $1 $19 {[%emt 0:03:23]} 19. h5 {[%emt 0:12:23]} Nf8 {[%emt 0:00:21][%cal Bg6f8,Bf8e6,Be6d4,Bd4c2][%mdl 32]} 20. Be3 {[%emt 0:00:14]} h6 {[%emt 0:01:46]} 21. Nh3 {[%emt 0:00:01]} Rb6 {[%emt 0:05:17]} 22. b3 {[%emt 0:03:14]} Bf6 {[%emt 0:00:36]} 23. Rac1 {[%emt 0:00:09]} Ne6 {[%emt 0:00:08]} 24. Kh1 {[%emt 0:00:41]} Nd4 {[%emt 0:01:31]} 25. Qe1 {[%emt 0:01:13]} Be8 {[%emt 0:01:20]} 26. Qa5 {[%emt 0:01:28]} Rd8 {[%emt 0:02:17]} 27. b4 $2 {[%emt 0:00:41]} (27. Rf1) 27... Nxc2 {[%emt 0:07:23]} 28. Rxd8 {[%emt 0:00:27]} Qxd8 {[%emt 0:00:53]} 29. Bxc5 {[%emt 0:00:25]} Qd2 {[%emt 0:01:10]} 30. Rg1 {[%emt 0:00:34]} Rb7 {[%emt 0:00:59]} 31. Qa6 {[%emt 0:00:33]} Qd7 {[%emt 0:00:23]} 32. Rc1 {[%emt 0:00:30]} Nxb4 {[%emt 0:00:25]} 33. Bxb4 {[%emt 0:00:05]} Rxb4 {[%emt 0:00:06]} 34. c5 {[%emt 0:00:02]} Ra4 {[%emt 0:01:21]} 35. Qe2 {[%emt 0:00:05]} Qd3 {[%emt 0:00:07]} 36. Qe1 {[%emt 0:00:20]} Rc4 {[%emt 0:03:22][%cal Ba4c4,Bc4c5,Bc5c3][%mdl 32]} 37. Rd1 {[%emt 0:00:15]} Qc3 {[%emt 0:00:19]} 38. Qe2 {[%emt 0:00:02]} Rxc5 {[%emt 0:00:29]} 39. Qa6 {[%emt 0:00:02]} Bxh5 {[%emt 0:00:35]} 40. Rb1 {[%emt 0:00:00]} Kh7 {[%emt 0:00:00]} (40... Qg3 $142 41. Ng1 {[#]} Bf3 $1 {[%mdl 512]} 42. gxf3 Qh4+ 43. Kg2 exf3+ 44. Kf1 Qh1 45. Kf2 Bd4+ 46. Ke1 Qxg1+ 47. Qf1 Bc3+ 48. Kd1 Qd4+ 49. Kc2 Ba5+ 50. Qc4+ Rxc4+ 51. Kb3 Qc3#) 41. Rb8 {[%emt 0:08:37]} Qe1+ {[%emt 0:02:42] Black mates.} 42. Kh2 {[%emt 0:00:23]} Rc3 {[%emt 0:00:40]} 43. Rb3 {[%emt 0:10:42]} Qg3+ {[%emt 0:00:20]} 44. Kh1 {[%emt 0:00:23] [#]} Bf3 $1 {[%emt 0:00:49][%csl Gf3][%cal Rg3g2]} 45. Qf1 {[%emt 0:00:32]} (45. Ng5+ hxg5) 45... Qxh3+ {[%emt 0:00:03]} 46. Kg1 {[%emt 0:00:01] Weighted Error Value: White=0.71/Black=0.04 (flawless)} 0-1